Cogmind - Beta 15 @@@ ROGUE MODE // 2025.06.22 @ 08:19:53 Player: CheifClapdad Result: Destroyed by G-50 Soldier with Heavy Laser Performance ------------- Evolutions (2) 1000 Regions Visited (6) 1200 Robots Destroyed (107) 535 Value Destroyed (4731) 4731 Prototype IDs (2) 40 Alien Tech Used (0) 0 Bonus (883) 883 TOTAL SCORE: 8389 Bonus ------- High Alert Combat Kills 683 Entered Garrisons 200 Cogmind --------- Core Integrity 0/550 Matter 278/300 Energy 156/280 System Corruption 1% Temperature Warm (105) Movement Treading (170) Location -8/Storage Parts ------- > --- POWER (1) -------- Heavy Ion Engine > --- PROPULSION (4) --- Armored Treads Armored Treads Armored Treads Armored Treads > --- UTILITY (4) ------ Large Storage Unit Target Analyzer Target Analyzer Hardened Medium Armor Plating > --- WEAPON (2) ------- Advanced Beam Cannon Shotgun > --- INVENTORY (15) --- Light Nuclear Core Aluminum Leg Carbon-fiber Leg Titanium Leg Small Storage Unit High-capacity Matter Pod (200) Hardened Medium Armor Plating High-powered Tractor Beam High-powered Tractor Beam High-powered Tractor Beam High-powered Tractor Beam Advanced Beam Cannon Light Assault Rifle Light Assault Rifle Peak State ------------ > --- POWER ------------ Heavy Ion Engine > --- PROPULSION ------- Armored Treads Armored Treads Armored Treads Armored Treads > --- UTILITY ---------- Large Storage Unit Target Analyzer Target Analyzer Hardened Medium Armor Plating > --- WEAPON ----------- Advanced Beam Cannon Shotgun > --- INVENTORY -------- Light Nuclear Core Aluminum Leg Carbon-fiber Leg Titanium Leg Small Storage Unit High-capacity Matter Pod Hardened Medium Armor Plating High-powered Tractor Beam High-powered Tractor Beam High-powered Tractor Beam High-powered Tractor Beam Advanced Beam Cannon Light Assault Rifle Light Assault Rifle [Rating: 33] Favorites ----------- Power Heavy Ion Engine Engine Heavy Ion Engine Power Core Nuclear Core Propulsion Aluminum Leg Treads Armored Treads Leg Aluminum Leg Wheel Wheel Utility Target Analyzer Device Improved Sensor Array Storage Large Storage Unit Processor Target Analyzer Protection Hardened Medium Armor Plating Weapon High-powered Shotgun Energy Gun Medium Laser Energy Cannon Advanced Beam Cannon Ballistic Gun High-powered Shotgun Ballistic Cannon Light Cannon Build | -11 -10 -9 -8 -8 -8 -8 ------- Run | Yrd Mat Mat Mat Gar Mat Sto Slots Evolved 4 | . . 2 2 . . . Power . | . . . . . . . Propulsion 2 | . . 1 1 . . . Utility 2 | . . 1 1 . . . Weapon . | . . . . . . . Parts Attached 65 | 7 2 14 6 18 12 6 Power 8 | 1 1 2 . 1 2 1 Engine 6 | 1 . 2 . 1 1 1 Core 2 | . 1 . . . 1 . Reactor . | . . . . . . . Propulsion 25 | 2 . 4 3 7 5 4 Treads 9 | 1 . 1 2 1 . 4 Leg 11 | . . . . 6 5 . Wheel 5 | 1 . 3 1 . . . Hover . | . . . . . . . Flight . | . . . . . . . Utility 16 | 2 1 4 2 4 3 . Device 4 | 1 1 1 . . 1 . Storage 2 | 1 . . 1 . . . Processor 5 | . . 3 . 1 1 . Hackware . | . . . . . . . Protection 5 | . . . 1 3 1 . Artifact . | . . . . . . . Weapon 16 | 2 . 4 1 6 2 1 Energy Gun 1 | 1 . . . . . . Energy Cannon 1 | . . . . . . 1 Ballistic Gun 13 | 1 . 3 1 6 2 . Ballistic Cannon 1 | . . 1 . . . . Launcher . | . . . . . . . Special Weapon . | . . . . . . . Impact Weapon . | . . . . . . . Slashing Weapon . | . . . . . . . Piercing Weapon . | . . . . . . . Special Melee Weapon . | . . . . . . . Unidentified Prototypes 2 | . . 1 . . . 1 Parts Lost 31 | . 1 7 3 13 6 1 Power 5 | . . 2 . 1 1 1 Propulsion 10 | . . 2 2 6 . . Utility 8 | . 1 1 . 3 3 . Weapon 8 | . . 2 1 3 2 . Highest Loss Streak 3 | . 1 3 2 3 2 1 To Critical Strikes 1 | . . . . 1 . . Average Backups 11 | 2 5 7 11 14 14 14 Power 1 | . 1 1 2 2 2 1 Propulsion . | 1 3 . . . . 3 Utility 6 | . . 3 7 8 8 7 Weapon 2 | . . 1 2 3 3 3 Tool/Special . | . . . . . . . Unused Backups 20 | . . 8 . 2 . 10 Power 3 | . . 1 . 1 . 1 Propulsion 3 | . . 2 . . . 1 Utility 8 | . . 2 . . . 6 Weapon 6 | . . 3 . 1 . 2 Tool/Special . | . . . . . . . Average Slot Usage (%) 93 | . 97 96 89 89 96 98 Engine 7 | . 7 9 9 7 2 8 Core 1 | . 6 1 . . 6 . Treads 9 | . 14 11 8 8 . 24 Leg 12 | . . . . 18 36 10 Wheel 8 | . 14 20 17 2 . . Device 3 | . 12 7 . . 1 . Storage 9 | . 14 11 9 9 9 9 Processor 15 | . . 12 18 18 17 18 Protection 4 | . . . 9 7 4 9 Energy Gun 1 | . 14 . . . . . Ballistic Gun 16 | . 14 13 18 17 17 15 Ballistic Cannon 1 | . . 8 . . . . Peak Build Rating 33 | 7 11 20 28 30 29 33 Average Rating 20 | 5 9 16 23 22 24 28 On Entrance 16 | . 7 11 20 28 24 26 Naked Turns . | . . . . . . . Heaviest Build 43 | 13 15 19 37 42 42 43 Greatest Support 80 | 20 20 26 40 60 52 80 Greatest Overweight (x) 10 | 1 1 1 2 10 1 1 Average Overweight (x) . | . . . . 1 . . Largest Inventory Capacity 15 | 8 8 8 15 15 15 15 Average Capacity 12 | 7 8 8 14 15 15 15 Most Carried 15 | 5 8 8 15 15 15 15 Average Carried 11 | 2 5 7 12 14 14 14 Final Capacity 15 | 8 8 8 15 15 15 15 Final Carried 15 | 3 8 8 15 15 15 14 Class Distribution -------------------- 63% | Mutant 36% | Scavenger-Mutant Dominant Class ---------------- Mutant | -10/Materials Mutant | -9/Materials Mutant | -8/Materials Scavenger-Mutant | -8/Garrison Scavenger-Mutant | -8/Materials Scavenger-Mutant | -8/Storage Resources | -11 -10 -9 -8 -8 -8 -8 ----------- Run | Yrd Mat Mat Mat Gar Mat Sto Matter Collected 2952 | 259 146 733 264 815 543 192 Remotely . | . . . . . . . Salvage Created 3775 | 66 384 555 315 1397 776 282 Parts 207 | 2 19 45 22 74 32 13 Haulers Intercepted 1 | . . . . . 1 . Recyclers Shooed 3 | . 1 . . . . 2 Parts Field Recycled . | . . . . . . . Retrieved Matter . | . . . . . . . Parts Self-Destructed . | . . . . . . . Prevented . | . . . . . . . Kills | -11 -10 -9 -8 -8 -8 -8 ------- Run | Yrd Mat Mat Mat Gar Mat Sto Combat Hostiles Destroyed 97 | . 8 18 10 39 17 5 Guns 87 | . 8 10 10 39 17 3 Cannons 10 | . . 8 . . . 2 Classes Destroyed 12 | 1 1 4 1 3 1 1 Worker 6 | . . 3 1 . 1 1 Hauler 1 | . . . . . 1 . Recycler 2 | 1 1 . . . . . Watcher 1 | . . 1 . . . . Swarmer 20 | . . 8 4 8 . . Grunt 49 | . 8 4 2 21 12 2 Brawler 3 | . . . . 3 . . Duelist 1 | . . . 1 . . . Sentry 19 | . . 6 3 3 5 2 Specialist 3 | . . . . 3 . . Hunter 1 | . . . . . . 1 Programmer 1 | . . . . 1 . . Best Kill Streak 10 | 1 3 6 5 10 6 4 Combat Bots Only 10 | . 2 4 5 10 6 3 Max Kills in Single Turn 2 | 1 1 2 1 2 1 2 Gunslinging . | . . . . . . . Exploded . | . . . . . . . Melee . | . . . . . . . Uniques/NPCs Destroyed . | . . . . . . . Combat | -11 -10 -9 -8 -8 -8 -8 -------- Run | Yrd Mat Mat Mat Gar Mat Sto Hostile Shots Fired 607 | . 39 110 45 268 100 45 Missed 178 | . 12 33 10 72 42 9 Hits 429 | . 27 77 35 196 58 36 Melee 3 | . . . 1 2 . . Projectile 426 | . 27 77 34 194 58 36 Critical Strikes 15 | . . 2 1 6 2 4 Damage Taken 5556 | . 326 880 429 2601 876 444 Core 761 | . 89 120 31 381 69 71 Absorbed by Shields . | . . . . . . . Regen/Repaired (Parts) 88 | . . . . . 88 . Core Remaining (%) 78 | 100 64 70 . . . . Volleys Fired 318 | 6 34 58 22 114 65 19 Largest 2 | 2 2 2 2 2 2 2 Hottest 91 | 70 70 55 50 50 50 91 Shots Fired 599 | 12 67 113 44 203 122 38 Gun 546 | 12 67 74 44 203 122 24 Cannon 53 | . . 39 . . . 14 Launcher . | . . . . . . . Special . | . . . . . . . Kinetic 546 | 6 34 113 44 203 122 24 Thermal 53 | 6 33 . . . . 14 Explosive . | . . . . . . . Electromagnetic . | . . . . . . . Robot Hit Streak 17 | 6 17 8 7 10 11 12 Robot Miss Streak 11 | 1 2 7 11 5 6 3 Penetration Max . | . . . . . . . Secondary Targets 10 | . 1 . 2 5 2 . Max Gunslinging Chain 1 | . 1 . 1 1 1 . Shots Hit Robots 428 | 9 48 70 31 147 97 26 Core Hits 224 | 2 20 26 19 88 55 14 Critical Kills 13 | . . 4 . 9 . . Critical Parts Destroyed 16 | . . . 3 8 4 1 Critical Strikes 39 | 1 2 9 3 18 4 2 Burn 3 | 1 2 . . . . . Destroy 32 | . . 5 3 18 4 2 Blast 4 | . . 4 . . . . Melee Attacks . | . . . . . . . Impact . | . . . . . . . Slashing . | . . . . . . . Piercing . | . . . . . . . Sneak Attacks . | . . . . . . . Combat Hostiles . | . . . . . . . Follow-up Attacks . | . . . . . . . Damage Inflicted 7266 | 112 602 1159 678 2535 1696 484 Guns 6650 | 112 602 779 678 2535 1688 256 Cannons 608 | . . 380 . . . 228 Explosions . | . . . . . . . Melee . | . . . . . . . Ramming 8 | . . . . . 8 . Kinetic 6668 | 61 291 1159 678 2535 1688 256 Thermal 590 | 51 311 . . . . 228 Explosive . | . . . . . . . Electromagnetic . | . . . . . . . Impact . | . . . . . . . Slashing . | . . . . . . . Piercing . | . . . . . . . Highest Corruption 1 | . . 1 . 1 1 1 Average Corruption 1 | . . 1 . 1 1 1 Corruption Purged . | . . . . . . . Corruption Blocked . | . . . . . . . Effects 30 | . . 9 . 12 7 2 Message Errors 3 | . . 1 . 1 1 . Matter Fused 12 | . . 1 . 7 2 2 Heat Flow Errors 5 | . . 2 . 1 2 . Energy Discharges 5 | . . 3 . 1 1 . Data Loss (minor) 1 | . . . . 1 . . Misfires 1 | . . 1 . . . . Alerts 1 | . . . . . 1 . Weapon Failures 2 | . . 1 . 1 . . Overload Shots . | . . . . . . . Overflow Damage 13 | . . 13 . . . . Projectiles 13 | . . 13 . . . . Explosions . | . . . . . . . Melee . | . . . . . . . Knockbacks 3 | . . 3 . . . . Impact . | . . . . . . . Kinetic 3 | . . 3 . . . . Secondary . | . . . . . . . Self-Inflicted Damage . | . . . . . . . Shots . | . . . . . . . Rammed . | . . . . . . . Targets Rammed 1 | . . . . . 1 . Kicked 1 | . . . . . 1 . Crushed . | . . . . . . . Highest Temperature 261 | 36 198 261 21 239 191 124 Average Temperature 47 | 16 88 43 7 33 34 57 Received Heat Transfer 2112 | . 165 255 117 918 522 135 Siege Activations . | . . . . . . . Martial Activations . | . . . . . . . Shielding Activations . | . . . . . . . Robots Disrupted . | . . . . . . . Combat Hostiles . | . . . . . . . Robots Corrupted . | . . . . . . . Combat Hostiles . | . . . . . . . Parts Fried . | . . . . . . . Impact Corruptions . | . . . . . . . Robots Melted . | . . . . . . . Combat Hostiles . | . . . . . . . Parts Melted 6 | . 6 . . . . . Heat Transferred 1702 | 222 1073 . . . . 407 Parts Sabotaged . | . . . . . . . Parts Stolen . | . . . . . . . Parts Stripped . | . . . . . . . Power Chain Reactions . | . . . . . . . Alert | -11 -10 -9 -8 -8 -8 -8 ------- Run | Yrd Mat Mat Mat Gar Mat Sto Maximum Alert Level 4 | . . . 1 4 3 1 Low Security (%) 44 | 100 100 100 96 2 . . Level 1 13 | . . . 3 18 . 100 Level 2 20 | . . . . 31 62 . Level 3 13 | . . . . 23 37 . Level 4 8 | . . . . 23 . . Level 5 . | . . . . . . . High Security . | . . . . . . . Max Security . | . . . . . . . Peak Influence 1358 | 5 66 158 202 1358 833 344 Initial 661 | . . . 59 13 661 334 Average 402 | . 17 42 98 725 706 289 Influence Increases 3207 | 5 206 563 278 1475 534 146 Destroy 0b10 Robot/C 1940 | . 160 360 200 780 340 100 Destroy 0b10 Robot/NC 50 | 5 5 20 5 . 10 5 Destroy Leader 344 | . 30 102 50 30 92 40 Successful Hack 16 | . 10 . 6 . . . Disable Machine 15 | . . 15 . . . . Anti-Garrison Action 650 | . . . . 650 . . Destroy Structure 12 | . 1 6 2 . 2 1 Partial Spotted 15 | . . . . . 15 . Lose Combat Pursuer 165 | . . 60 15 15 75 . Influence Decreases 2917 | 5 206 423 397 138 1099 649 Entered New Map 1245 | . . . 81 8 697 459 Time Decay 1387 | 5 196 378 286 . 342 180 Lost Part 285 | . 10 45 30 130 60 10 Squads Dispatched 7 | . 2 1 . . 3 1 Investigation 3 | . 1 . . . 2 . Extermination . | . . . . . . . Reinforcement 4 | . 1 1 . . 1 1 Assault . | . . . . . . . Garrison . | . . . . . . . Intercept . | . . . . . . . Searches Triggered . | . . . . . . . Construction Impeded 1 | . . . . . 1 . Haulers Reinforced . | . . . . . . . Active Scanning Responses . | . . . . . . . Cargo Convoy Interrupts . | . . . . . . . Stealth | -11 -10 -9 -8 -8 -8 -8 --------- Run | Yrd Mat Mat Mat Gar Mat Sto Distress Signals 6 | . . 3 . . 3 . Communications Jammed . | . . . . . . . Distress Signals . | . . . . . . . Times Spotted 143 | . 12 27 17 43 33 11 Peak Tracking Total 11 | . 4 5 5 11 11 5 Tactical Retreats 8 | . . 3 1 1 3 . Traps | -11 -10 -9 -8 -8 -8 -8 ------- Run | Yrd Mat Mat Mat Gar Mat Sto Traps Triggered 4 | . 1 1 . 1 1 . Indirectly . | . . . . . . . Trap Hack Attempts . | . . . . . . . Triggered . | . . . . . . . Disarmed . | . . . . . . . Reprogrammed . | . . . . . . . Reused . | . . . . . . . Traps Extracted . | . . . . . . . Installed . | . . . . . . . Triggered . | . . . . . . . Machines | -11 -10 -9 -8 -8 -8 -8 ---------- Run | Yrd Mat Mat Mat Gar Mat Sto Machines Disabled 6 | . . 1 . 5 . . Max in Single Turn 1 | . . 1 . 1 . . Garrison Relay 5 | . . . . 5 . . Machines Repaired . | . . . . . . . Machines Dismantled . | . . . . . . . Machines Sabotaged . | . . . . . . . Overloaded Fab Kills . | . . . . . . . Hacking | -11 -10 -9 -8 -8 -8 -8 --------- Run | Yrd Mat Mat Mat Gar Mat Sto Machines Accessed 10 | . 4 1 2 . 1 2 Terminals 8 | . 4 1 1 . . 2 Fabricators . | . . . . . . . Repair Stations 1 | . . . . . 1 . Recycling Units . | . . . . . . . Scanalyzers . | . . . . . . . Garrison Access 1 | . . . 1 . . . Total Hacks 23 | . 12 4 3 . 2 2 Successful 13 | . 5 2 3 . 1 2 Failed 10 | . 7 2 . . 1 . Catastrophic . | . . . . . . . Database Lockouts . | . . . . . . . Manual 21 | . 12 4 3 . 2 . Terminals 20 | . 12 4 2 . . 2 Fabricators . | . . . . . . . Repair Stations 2 | . . . . . 2 . Recycling Units . | . . . . . . . Scanalyzers . | . . . . . . . Garrison Access 1 | . . . 1 . . . Terminal Hacks 6 | . 2 1 1 . . 2 Part Schematic 1 | . 1 . . . . . Robot Analysis 3 | . 1 1 1 . . . Open Door 2 | . . . . . . 2 Fabricator Hacks . | . . . . . . . Repair Station Hacks . | . . . . . . . Recycling Unit Hacks . | . . . . . . . Scanalyzer . | . . . . . . . Garrison Access Hacks 1 | . . . 1 . . . Unlock Access 1 | . . . 1 . . . Unauthorized Hacks 6 | . 3 1 1 . 1 . Terminals 5 | . 3 1 1 . . . Botnet 5 | . 3 1 1 . . . Fabricators . | . . . . . . . Repair Stations 1 | . . . . . 1 . Patch 1 | . . . . . 1 . Recycling Units . | . . . . . . . Scanalyzers . | . . . . . . . Garrison Access . | . . . . . . . Data Cores Recovered . | . . . . . . . Used . | . . . . . . . Hacking Detections 6 | . 4 1 . . . 1 Full Trace Events 2 | . 2 . . . . . Feedback Events . | . . . . . . . Feedback Blocked . | . . . . . . . Robot Schematics Acquired . | . . . . . . . Robots Built . | . . . . . . . Authchips . | . . . . . . . Time . | . . . . . . . Total Robot Build Rating . | . . . . . . . Part Schematics Acquired 1 | . 1 . . . . . Parts Built . | . . . . . . . Authchips . | . . . . . . . Time . | . . . . . . . Total Part Build Rating . | . . . . . . . Parts Repaired . | . . . . . . . Time . | . . . . . . . Parts Recycled . | . . . . . . . Recycled Matter . | . . . . . . . Retrieved Matter . | . . . . . . . Retrieved Components . | . . . . . . . Parts Scanalyzed . | . . . . . . . Part Schematics Acquired . | . . . . . . . Parts Damaged . | . . . . . . . Bothacking | -11 -10 -9 -8 -8 -8 -8 ------------ Run | Yrd Mat Mat Mat Gar Mat Sto Used RIF Installer . | . . . . . . . Robots Hacked . | . . . . . . . Non-combat . | . . . . . . . Combat . | . . . . . . . Robot Hacks Applied . | . . . . . . . Relay Couplers Released 23 | . . . . 23 . . Machine Destruction 20 | . . . . 20 . . Programmers 3 | . . . . 3 . . Fabnet Peak Effective % . | . . . . . . . Robots Rewired . | . . . . . . . Allies Hacked . | . . . . . . . Hacks Repelled . | . . . . . . . Allies | -11 -10 -9 -8 -8 -8 -8 -------- Run | Yrd Mat Mat Mat Gar Mat Sto Total Allies . | . . . . . . . Largest Group . | . . . . . . . Highest-Rated Group . | . . . . . . . Highest-Rated Ally . | . . . . . . . Initial Warlord ECA Mod 14 | . . . . . 7 7 Total Orders . | . . . . . . . Ally Attacks . | . . . . . . . Total Damage . | . . . . . . . Kills . | . . . . . . . Allies Corrupted . | . . . . . . . Allies Melted . | . . . . . . . Intel | -11 -10 -9 -8 -8 -8 -8 ------- Run | Yrd Mat Mat Mat Gar Mat Sto Active Infowar (turns) 952 | . . 806 . . 146 . Sensors 952 | . . 806 . . 146 . Robot Analysis Total 3 | . 1 1 1 . . . Derelict Logs Recovered . | . . . . . . . Drone Launches . | . . . . . . . Drone Recoveries . | . . . . . . . Exploration | -11 -10 -9 -8 -8 -8 -8 ------------- Run | Yrd Mat Mat Mat Gar Mat Sto Turns Passed 6184 | 164 654 1251 620 2352 779 364 Spaces Moved 3369 | 107 328 852 504 985 399 194 Core 24 | 19 . . . 5 . . Treads 1211 | 62 311 382 9 324 . 123 Legs 1101 | . . . . 631 399 71 Wheels 1033 | 26 17 470 495 25 . . Hover . | . . . . . . . Flight . | . . . . . . . Fastest Speed 50 | 50 95 90 90 105 120 122 Average Speed 151 | 122 156 122 106 204 143 152 Slowest Speed 550 | 160 160 160 250 550 190 250 Overloaded Moves . | . . . . . . . Propulsion Burnouts . | . . . . . . . Robots Hopped . | . . . . . . . Potential Cave-ins . | . . . . . . . Cave-ins Triggered . | . . . . . . . Exploration Rate (%) 38 | 7 33 53 44 72 31 30 Regions Visited 6 Branch Regions 1 Pre-discovered Areas . | . . . . . . . Known Exits Taken 1 | . . . 1 . . . Unknown Exits Taken 4 | 1 1 1 . . 1 . Scrap Searched . | . . . . . . . Spaces Dug . | . . . . . . . Terrain Destroyed . | . . . . . . . Melee . | . . . . . . . Projectile . | . . . . . . . AOE . | . . . . . . . Terrain Rammed . | . . . . . . . Walls Destroyed . | . . . . . . . Machines Disabled . | . . . . . . . Actions | -11 -10 -9 -8 -8 -8 -8 --------- Run | Yrd Mat Mat Mat Gar Mat Sto Total 3866 | 125 400 957 539 1129 486 230 Wait 38 | . 33 4 . . 1 . Move 3363 | 106 327 851 503 984 398 194 Hop . | . . . . . . . Pick Up 44 | 5 4 13 8 7 4 3 Fast Attach 31 | 6 1 6 3 9 1 5 Attach 18 | 1 . 4 2 5 5 1 Detach . | . . . . . . . Swap 20 | . 1 7 1 5 6 . Drop 33 | 1 . 14 . 5 5 8 Fire 318 | 6 34 58 22 114 65 19 Melee . | . . . . . . . Ram . | . . . . . . . Kick 1 | . . . . . 1 . Crush . | . . . . . . . Escape Stasis . | . . . . . . . Rewire . | . . . . . . . Trap . | . . . . . . . Miscellaneous . | . . . . . . . Route ------- -11/Scrapyard -10/Materials (discovered 2 exits: *Mat / [*Min]) -9/Materials (discovered 2 exits: *Mat x2) -8/Materials -8/Garrison (discovered 4 exits: *Mat x4) -8/Materials -8/Storage History --------- Turn | Location | Event 7 | -11/Scrapyard | Discovered new exit (range 15) 165 | -11/Scrapyard | Entered Materials 310 | -10/Materials | Build established: Mutant 541 | -10/Materials | Discovered new exit (range 7) 654 | -10/Materials | Discovered new exit (range 15) 819 | -10/Materials | Entered another Materials area 819 | -9/Materials | Evolved 2 slots: Propulsion x1, Utility x1 1297 | -9/Materials | Discovered new exit (range 4) 1733 | -9/Materials | Lost 3 parts (2n1u) 2002 | -9/Materials | Discovered new exit (range 9) 2062 | -9/Materials | Lost 3 parts (2p1w) 2070 | -9/Materials | Entered another Materials area 2070 | -8/Materials | Evolved 2 slots: Propulsion x1, Utility x1 2688 | -8/Materials | Identified exit to Garrison 2690 | -8/Materials | Entered Garrison 2763 | -8/Garrison | Lost 3 parts (1n1u1w) 2777 | -8/Garrison | Destroyed 10 combat bots 2833 | -8/Garrison | Garrison Relay disabled 2886 | -8/Garrison | Triggered checkpoint 3014 | -8/Garrison | Triggered checkpoint 3170 | -8/Garrison | Triggered checkpoint 3231 | -8/Garrison | Garrison Relay disabled 3272 | -8/Garrison | Discovered new exit (range 14) 3380 | -8/Garrison | Triggered checkpoint 3428 | -8/Garrison | Triggered checkpoint 3486 | -8/Garrison | Core integrity fell below 50% 3609 | -8/Garrison | Discovered new exit (range 5) 3916 | -8/Garrison | Triggered checkpoint 4003 | -8/Garrison | Garrison Relay disabled 4052 | -8/Garrison | Discovered new exit (range 13) 4166 | -8/Garrison | Triggered checkpoint 4264 | -8/Garrison | Build established: Scavenger-Mutant 4266 | -8/Garrison | Discovered new exit (range 13) 4318 | -8/Garrison | Triggered checkpoint 4381 | -8/Garrison | Garrison Relay disabled 4392 | -8/Garrison | Triggered checkpoint 4476 | -8/Garrison | Triggered checkpoint 4539 | -8/Garrison | Garrison Relay disabled 5042 | -8/Garrison | Entered Materials 5343 | -8/Materials | Core integrity fell below 20% 5360 | -8/Materials | Discovered new exit (range 11) 5821 | -8/Materials | Entered Storage 6185 | -8/Storage | Destroyed by G-50 Soldier with Heavy Laser Last Messages --------------- 06134_ Acquired 57 matter. 06136_ Slug penetrates Wall. 06140_ R-06 Scavenger inserts Lgt. Nuclear Core into recycling unit. 06140_ R-06 Scavenger collects Med. Matter Pod. 06143_ U-05 Engineer builds a Door. 06145_ Penetrated by Slug. 06149_ R-06 Scavenger collects Hvy. Assault Rifle. 06150_ K-01 Serf cleans the Recycling Unit. 06151_ Penetrated by Slug. 06151_ Lgt. Ion Engine destroyed. 06160_ Penetrated by Slug. 06161_ H-55 Commando destroyed. 06164_ Acquired 32 matter. 06170_ K-01 Serf cleans the Recycling Unit. 06179_ Critical hit (Burn: +37). 06179_ K-01 Serf cleans the Recycling Unit. 06183_ A-02 Transporter destroyed. 06183_ K-01 Serf collects debris. Map ----- +----------------------------------------------------+ | ????# #????????????????????????????????????????? | | ????# #????????????????????????????????????????? | | ????# #????????????????????????????????????????? | | ????# #????????????????????????????????????????? | | ????# #????????????????????????????????????????? | | ????# #????????????????????????????????????????? | | ????# #????????????????????????????????????????? | | ????# #????????????????????????????????????????? | | ????# #????????????????????????????????????????? | | ????# #????????????????????????????????????????? | | ????# #????????????????????????????????????????? | | ????# #????????????????????????????????????????? | | ????# #????????????????????????????????????????? | | ????# #????????######??????????????????????????? | | ????# ########## #??????????????????????????? | | ????# # ! # +??????????????????????????? | | ????# / ! # #??????????????????????????? | | ????# #* # #??????????????????????????? | | ????# # # #??????????????????????????? | | ????# # [ ! # r#############??????????????? | | ????# # #^ k """ g g???????????????? | | ????# # # ^^^^ "Y" k###??????????????? | | ????# # # ^ """ *!!a """#?????????????? | | ????# # !# """ !%!! Y"#?????????????? | | ????# #####+#### """ %!= """#?????????????? | | ????# @ k#????????????????? | | ????# = ao u ggg ?????????? | | ????# [%############## ????????? | | ????# #####+#### %!#?????????????????????????? | | ????# #?#T #?###+#######?????????????????????? | | ????# #?## #?# !!! = #?????????????????????? | | ????# #??#]] #?# """!""" #?????????????????????? | | ????# #??#]]]#?# """ """ #?????????????????????? | | ????# #??#####?# """ """ #?????????????????????? | | ????# #????????# #?????????????????????? | | ????#####????????# #?????????????????????? | | ????????????????# #?????????????????????? | | ????????????????## #?????????????????????? | | ?????????????????####" "####?????????????????????? | | ????????????????????#"G"#????????????????????????? | | ????????????????????# " #????????????????????????? | | ????????????????????#####????????????????????????? | | ?????????????????????????????????????????????????? | | ?????????????????????????????????????????????????? | | ?????????????????????????????????????????????????? | | ?????????????????????????????????????????????????? | | ?????????????????????????????????????????????????? | | ?????????????????????????????????????????????????? | | ?????????????????????????????????????????????????? | | | +----------------------------------------------------+ Best States ------------- Heat Dissipation 42 Energy Generation 14 Energy Capacity 280 Matter Stores 300 Matter Capacity 300 Sight Range 16 Robot Scan Range 15 Terrain Scan Density 10 Armor Coverage 225 Evasion (%) 55 Targeting Accuracy 5 Target Analysis 7 Recoil Reduction 4 Item Schematics ----------------- Hcp. Storage Unit | -10/Materials | Hacked Robot Schematics ------------------ None Fabricated ------------ Nothing Repaired ---------- Nothing Alien Tech Used ----------------- None Achievements -------------- None Challenges ------------ None Game ------ Seed CannonDataScrap Manual? 0 Play Time 00:31:15 Cumulative 86.4 hours Start 2025.06.22 @ 07:49:59 End 2025.06.22 @ 08:19:53 Sessions 1 Manual Loads 0 Difficulty Rogue Special Mode None Game No. 116 Rogue 116 Adventurer 0 Explorer 0 Win Type - Total 1 Types 1/0/0/0/0/0/0/0/0/0 Lore% 36 Gallery% 48 Achievement% 41 Wizard Run 0 Options --------- Layout 1 ASCII 0 Keyboard 0 Movement Arrows Keybinds 0 Fullscreen 1 Font 24/Smallcaps Map View 50x35 Zoom Use 0% Tactical HUD 1 Map Filters NONE Filters NONE Steam X RUN: 3ef6eb70-a513-4e05-a36f-71ebcf9b48a5